bitfinex/quotes_SOLUSD_20220207
["timestamp","ask_amount","ask_price","bid_price","bid_amount"]
[1644198291672,36.4321,114.1,113.98,24.5637]
[1644198291873,36.4321,114.1,114.01,13.1555]
[1644198292073,36.4321,114.1,114.01,19.1555]
[1644198292273,46.74684026,114.09,114.02,45.21294831]
[1644198292573,46.74684026,114.09,114.02,51.21294831]
[1644198292772,46.74684026,114.09,114.02,51.46294831]
[1644198292974,46.74684026,114.09,114.02,45.46294831]
[1644198293176,46.99684026,114.09,114.02,45.46294831]
[1644198293775,60.15404026,114.09,114.02,45.21294831]
[1644198293975,60.15404026,114.09,114.0,23.9462]
[1644198294175,60.15404026,114.09,114.0,29.9462]
[1644198294976,60.15404026,114.09,114.01,40.7006501]
[1644198295779,60.15404026,114.09,114.01,40.9506501]
[1644198299180,60.15404026,114.09,114.01,54.1071501]
[1644198299381,0.25,114.09,114.01,54.1071501]
[1644198299580,23.4858,114.11,114.01,62.17052194]
[1644198300381,58.54311185,114.11,114.01,62.17052194]
[1644198301682,71.69761185,114.11,114.01,60.1071501]
[1644198302086,84.33761185,114.11,114.01,60.1071501]
[1644198302484,85.58434225,114.11,114.01,60.1071501]
[1644198302884,84.33761185,114.11,114.01,60.1071501]
[1644198303087,84.33761185,114.11,114.01,62.17052194]
[1644198303288,84.58761185,114.11,114.01,62.17052194]
[1644198303886,71.94761185,114.11,114.01,62.17052194]
[1644198304689,71.94761185,114.11,114.02,22.7682]
[1644198304888,71.94761185,114.11,114.02,35.9226]
[1644198305086,71.94761185,114.11,114.02,42.1726]
[1644198308793,58.79311185,114.11,114.02,42.1726]
[1644198311791,58.54311185,114.11,114.02,42.1726]
[1644198311992,58.54311185,114.11,114.02,44.23597184]
[1644198314195,58.54311185,114.11,114.02,42.1726]
[1644198315196,1.2467304,114.12,114.02,44.23597184]
[1644198315397,1.2467304,114.13,114.03,12.64]
[1644198315597,13.1507,114.15,114.06,13.1494]
[1644198315598,1.2467304,114.14,114.06,13.1494]
[1644198315798,1.2467304,114.14,114.06,13.3994]
[1644198316027,1.2467304,114.14,114.06,19.3994]
[1644198316197,36.9283476,114.13,114.07,42.21346621]
[1644198316398,1.2467304,114.14,114.07,42.21346621]
[1644198316600,1.2467304,114.14,114.07,42.46346621]
[1644198317198,1.2467304,114.14,114.07,0.25]
[1644198317403,14.3979304,114.14,114.07,6.25]
[1644198317700,14.3979304,114.14,114.07,0.25]
[1644198318099,14.3979304,114.14,114.06,19.4008]
[1644198318300,40.34457143,114.13,114.06,67.23987289]
[1644198319501,1.2467304,114.14,114.06,67.23987289]
[1644198319699,1.2467304,114.15,114.06,69.30324473]
[1644198320300,1.2467304,114.15,114.07,22.9309]
[1644198320504,1.2467304,114.16,114.09,13.1469]
[1644198320703,1.2467304,114.17,114.1,34.99981328]
[1644198320902,43.21326194,114.18,114.1,37.06318512]
[1644198321104,43.21326194,114.18,114.1,43.31318512]
[1644198321505,41.96653154,114.18,114.1,43.31318512]
[1644198321906,41.96653154,114.18,114.12,13.1428]
[1644198322104,41.96653154,114.18,114.12,19.1428]
[1644198322303,41.96653154,114.18,114.12,19.3928]
[1644198323106,41.96653154,114.18,114.12,13.3928]
[1644198323405,41.96653154,114.18,114.12,19.3928]
[1644198323834,41.96653154,114.18,114.12,6.25]
[1644198324032,41.96653154,114.18,114.12,6.0]
[1644198324235,43.21326194,114.18,114.12,0.25]
[1644198324428,41.96653154,114.18,114.12,0.25]
[1644198324830,41.96653154,114.18,114.11,25.0241]
[1644198325029,56.35996194,114.18,114.11,25.0241]
[1644198326233,56.35996194,114.18,114.11,0.25]
[1644198326636,56.35996194,114.18,114.1,55.13562257]
[1644198326839,56.35996194,114.18,114.1,54.88562257]
[1644198327434,58.54680111,114.18,114.1,6.0]
[1644198327635,58.54680111,114.18,114.09,30.9817]
[1644198327836,13.1495,114.16,114.09,30.9817]
[1644198328236,13.1495,114.16,114.09,25.2317]
[1644198328436,13.1495,114.16,114.09,64.98642648]
[1644198328839,13.1495,114.16,114.09,25.2317]
[1644198329441,13.1495,114.16,114.09,24.9817]
[1644198329839,1.2467304,114.17,114.1,48.76523671]
[1644198330041,43.21326194,114.18,114.1,48.76523671]
[1644198330239,2.49839543,114.22,114.1,48.76523671]
[1644198330441,2.49839543,114.24,114.11,25.71757184]
[1644198330643,112.5,114.25,114.12,12.64]
[1644198330840,2.49839543,114.27,114.13,48.3745]
[1644198331039,2.49839543,114.27,114.14,17.5175]
[1644198331239,45.5063873,114.26,114.15,39.06333175]
[1644198331438,45.5063873,114.26,114.16,23.5729]
[1644198331742,45.5063873,114.26,114.16,29.8229]
[1644198332041,71.2845873,114.26,114.16,42.9611]
[1644198332439,71.2845873,114.26,114.13,24.7203]
[1644198332641,112.5,114.24,114.1,35.7293]
[1644198332838,17.018,114.23,114.1,23.0893]
[1644198333039,13.1447,114.21,114.1,36.2344]
[1644198333238,25.7847,114.21,114.1,36.2344]
[1644198333438,25.7847,114.21,114.1,83.86271646]
[1644198333439,42.14734006,114.2,114.1,83.86271646]
[1644198333641,42.14734006,114.2,114.1,89.86271646]
[1644198333642,44.33417923,114.2,114.1,89.86271646]
[1644198333840,44.58417923,114.2,114.1,90.11271646]
[1644198334839,44.58417923,114.2,114.1,89.86271646]
[1644198335040,57.72947923,114.2,114.1,83.86271646]
[1644198336243,57.72947923,114.2,114.1,84.11271646]
[1644198336643,55.54264006,114.2,114.1,84.11271646]
[1644198336847,42.39734006,114.2,114.1,84.11271646]
[1644198337644,42.39734006,114.2,114.1,90.11271646]
[1644198340852,55.54244006,114.2,114.1,89.86271646]
[1644198341047,68.18244006,114.2,114.1,83.86271646]
[1644198342852,68.18244006,114.2,114.1,84.11271646]
[1644198344254,68.18244006,114.2,114.1,36.4844]
[1644198344655,70.36927923,114.2,114.1,23.3393]
[1644198344854,70.36927923,114.2,114.1,23.0893]
[1644198345056,69.86927923,114.2,114.1,23.0893]
[1644198345256,81.51327923,114.2,114.1,23.0893]
[1644198345658,239.51327923,114.2,114.07,13.1495]
[1644198345857,28.7435,114.19,114.08,22.784]
[1644198346061,13.1496,114.16,114.08,22.784]
[1644198346255,12.64,114.15,114.08,22.784]
[1644198346455,39.92653939,114.14,114.08,57.06589754]
[1644198346856,39.92653939,114.14,114.08,22.784]
[1644198347755,39.92653939,114.14,114.08,57.32032775]
[1644198348455,39.92653939,114.14,114.08,22.534]
[1644198348659,52.56653939,114.14,114.08,22.534]
[1644198349256,39.92653939,114.14,114.08,22.534]
[1644198349886,39.92653939,114.14,114.08,22.784]
[1644198350285,12.64,114.16,114.09,37.30435937]
[1644198350596,2.49839543,114.2,114.09,37.30435937]
[1644198350789,2.49839543,114.22,114.1,26.63357585]
[1644198350981,12.64,114.23,114.1,75.40237585]
[1644198351179,135.5885,114.24,114.11,2.06257585]
[1644198351379,34.19835906,114.23,114.12,56.03969644]
[1644198351584,34.19835906,114.23,114.14,40.02398538]
[1644198351782,34.19835906,114.23,114.14,40.27398538]
[1644198351981,34.44835906,114.23,114.14,40.27398538]
[1644198352384,34.19835906,114.23,114.14,53.41268538]
[1644198353783,34.19835906,114.23,114.14,55.47526123]
[1644198356185,34.19835906,114.23,114.14,53.41268538]
[1644198356385,34.19835906,114.23,114.14,53.16268538]
[1644198357885,34.19835906,114.23,114.14,53.41268538]
[1644198359288,34.19835906,114.23,114.14,55.47526123]
[1644198360387,34.19835906,114.23,114.14,53.16268538]
[1644198360587,34.19835906,114.23,114.14,65.80268538]
[1644198360791,34.19835906,114.23,114.14,67.86526123]
[1644198360987,34.19835906,114.23,114.14,65.80268538]
[1644198361590,34.19835906,114.23,114.14,66.05268538]
[1644198362089,34.19835906,114.23,114.14,68.11526123]
[1644198362989,34.19835906,114.23,114.14,67.86526123]
[1644198363188,34.19835906,114.23,114.14,65.80268538]
[1644198363591,34.19835906,114.23,114.14,13.1387]
[1644198363793,36.63519823,114.23,114.14,13.1387]
[1644198363993,34.44835906,114.23,114.14,13.1387]
[1644198364391,34.44835906,114.23,114.14,13.3887]
[1644198365396,36.63519823,114.23,114.14,13.3887]
[1644198365592,36.63519823,114.23,114.14,13.1387]
[1644198365893,49.77789823,114.23,114.13,24.571]
[1644198366093,49.77789823,114.23,114.1,22.9829]
[1644198366294,49.77789823,114.23,114.1,47.0068]
[1644198366295,39.8426,114.22,114.1,47.0068]
[1644198366493,46.72921423,114.21,114.1,92.24560289]
[1644198367092,46.72921423,114.21,114.1,98.24560289]
[1644198367793,46.72921423,114.21,114.11,13.144]
[1644198368193,46.97921423,114.21,114.11,13.144]
[1644198368392,46.97921423,114.21,114.1,53.0068]
[1644198368593,4.38,114.2,114.1,47.0068]
[1644198368996,2.18683917,114.19,114.1,47.0068]
[1644198369194,17.5256,114.2,114.1,66.403]
[1644198369394,35.64575889,114.18,114.11,40.63203373]
[1644198369793,35.64575889,114.18,114.11,0.25]
[1644198370796,35.64575889,114.18,114.11,60.28664396]
[1644198371197,35.64575889,114.18,114.11,60.53664396]
[1644198371398,35.14575889,114.18,114.11,60.53664396]
[1644198371796,35.14575889,114.18,114.11,13.3951]
[1644198372197,35.14575889,114.18,114.11,0.25]
[1644198373399,35.14575889,114.18,114.1,54.18740847]
[1644198373400,35.14575889,114.18,114.1,48.43740847]
[1644198373600,35.14575889,114.18,114.11,13.1447]
[1644198373799,35.14575889,114.18,114.11,13.3947]
[1644198374202,35.14575889,114.18,114.11,0.25]
[1644198374601,35.14575889,114.18,114.07,12.64]
[1644198374802,35.14575889,114.18,114.1,0.25]
[1644198375404,37.33259806,114.18,114.07,24.6218]
[1644198375600,63.68580794,114.18,114.05,4.38]
[1644198375802,27.369,114.17,114.05,4.38]
[1644198376001,12.64,114.16,114.05,4.38]
[1644198376202,4.381,114.15,114.05,4.38]
[1644198376500,42.27844679,114.14,114.05,50.98703064]
[1644198376701,55.43204679,114.14,114.05,50.98703064]
[1644198377103,42.27844679,114.14,114.05,51.23703064]
[1644198378000,42.27844679,114.14,114.05,60.00773064]
[1644198381101,42.27844679,114.14,114.05,59.75773064]
[1644198381303,42.27844679,114.14,114.05,84.75273064]
[1644198382703,42.27844679,114.14,114.05,85.00273064]
[1644198385404,42.27844679,114.14,114.05,38.3957]
[1644198385603,42.27844679,114.14,114.05,25.245]
[1644198386206,42.27844679,114.14,114.05,0.25]
[1644198386407,22.7851,114.13,114.05,0.25]
[1644198386606,40.48469517,114.12,114.03,22.8042]
[1644198386905,40.48469517,114.12,114.03,0.25]
[1644198387407,40.48469517,114.12,114.01,25.795]
[1644198387608,23.8533,114.11,114.02,69.52800158]
[1644198387809,35.49224106,114.1,114.02,82.68230158]
[1644198388713,35.49224106,114.1,114.02,82.93230158]
[1644198389111,24.18,114.13,114.02,82.93230158]
[1644198389310,24.18,114.13,114.02,120.13750158]
[1644198389515,24.18,114.13,114.03,2.06813051]
[1644198389713,24.18,114.13,114.06,13.1498]
[1644198390115,37.23129081,114.12,114.06,0.25]
[1644198390413,37.23129081,114.12,114.04,34.55527085]
[1644198390616,37.23129081,114.12,114.04,59.51817085]
[1644198391516,37.23129081,114.12,114.04,24.9629]
[1644198391716,37.23129081,114.12,114.02,37.2052]
[1644198391717,37.23129081,114.12,114.02,37.7188]
[1644198391919,60.46589081,114.12,114.02,24.5652]
[1644198392115,62.65272998,114.12,114.02,24.5652]
[1644198392316,60.46589081,114.12,114.02,24.5652]
[1644198392719,60.71589081,114.12,114.02,73.15471696]
[1644198393117,60.71589081,114.12,114.02,73.40471696]
[1644198393317,60.71589081,114.12,114.02,86.55911696]
[1644198393717,60.71589081,114.12,114.03,24.7625]
[1644198393919,60.71589081,114.12,114.04,41.6955246]
[1644198394317,60.71589081,114.12,114.04,41.9455246]
[1644198394919,60.71589081,114.12,114.04,0.25]
[1644198395120,60.71589081,114.12,114.03,24.7625]
[1644198395821,62.90272998,114.12,114.02,24.5652]
[1644198396021,62.90272998,114.12,114.02,65.22507466]
[1644198397030,76.05842998,114.12,114.02,65.47507466]
[1644198397628,76.05842998,114.12,114.02,30.3152]
[1644198398029,88.69842998,114.12,114.02,0.25]
[1644198398227,88.69842998,114.12,113.99,32.0471]
[1644198398428,88.69842998,114.12,113.99,19.1571]
[1644198398653,0.31812316,114.1,113.98,4.382]
[1644198398852,13.1624,114.07,113.98,3.882]
[1644198399055,0.30995619,114.06,113.93,13.1643]
[1644198399251,25.22769536,114.06,113.93,13.1643]
[1644198399660,2.18683917,114.05,113.93,13.1643]
[1644198399852,34.39116508,114.04,113.94,41.69377044]
[1644198400254,34.39116508,114.04,113.94,60.85727044]
[1644198400453,34.39116508,114.04,113.94,62.91318832]
[1644198401252,34.39116508,114.04,113.94,63.16318832]
[1644198402055,34.64116508,114.04,113.94,63.16318832]
[1644198403455,34.64116508,114.04,113.96,46.58393019]
[1644198403656,34.64116508,114.04,113.96,65.74503019]
[1644198403858,34.64116508,114.04,113.96,65.99503019]
[1644198404659,34.64116508,114.04,113.96,13.1611]
[1644198404857,34.64116508,114.04,113.94,25.8029]
[1644198405057,34.64116508,114.04,113.94,13.1629]
[1644198405659,34.64116508,114.04,113.95,39.5893932]
[1644198406056,34.64116508,114.04,113.95,45.5893932]
[1644198407056,47.80616508,114.04,113.95,45.5893932]
[1644198407859,34.64116508,114.04,113.95,45.5893932]
[1644198408057,34.64116508,114.04,113.95,58.7515932]
[1644198408257,34.64116508,114.04,113.95,59.0015932]
[1644198409157,34.64116508,114.04,113.95,6.0]
[1644198409559,34.64116508,114.04,113.93,37.8434]
[1644198409560,34.64116508,114.04,113.93,43.8434]
[1644198409756,34.64116508,114.04,113.93,44.0934]
[1644198410157,34.64116508,114.04,113.94,35.67151677]
[1644198410357,59.36806508,114.04,113.94,35.92151677]
[1644198410558,59.36806508,114.04,113.94,41.92151677]
[1644198410959,59.36806508,114.04,113.94,55.08511677]
[1644198412163,59.36806508,114.04,113.95,23.6645]
[1644198412360,59.36806508,114.04,113.96,61.34087074]
[1644198412561,59.36806508,114.04,113.96,67.34087074]
[1644198412760,59.36806508,114.04,113.96,67.59087074]
[1644198412960,59.11806508,114.04,113.96,67.59087074]
[1644198414862,24.7269,114.04,113.96,67.59087074]
[1644198415064,24.7971,114.08,113.97,12.64]
[1644198415263,24.7971,114.08,113.99,13.1578]
[1644198415661,24.7971,114.08,113.99,19.4078]
[1644198415863,38.25529398,114.07,114.0,45.56811409]
[1644198416063,2.18683917,114.09,114.0,45.56811409]
[1644198416364,22.7817,114.1,114.0,64.97491409]
[1644198417165,48.09247546,114.09,114.0,64.97491409]
[1644198417568,48.34247546,114.09,114.0,64.97491409]
[1644198418365,22.7817,114.1,114.0,64.97491409]
[1644198418566,22.7817,114.1,114.0,77.61491409]
[1644198419365,41.80411982,114.09,114.0,77.61491409]
[1644198419767,42.05411982,114.09,114.0,77.61491409]
[1644198421474,41.80411982,114.09,114.0,77.61491409]
[1644198423966,41.80411982,114.09,114.0,77.36491409]
[1644198424167,42.05411982,114.09,114.0,77.36491409]
[1644198425370,42.05411982,114.09,114.0,77.61491409]
[1644198425770,22.7817,114.1,114.0,77.61491409]
[1644198425970,22.905,114.12,114.0,79.67083197]
[1644198426171,22.905,114.12,114.04,13.1524]
[1644198426672,22.905,114.12,114.04,19.4024]
[1644198426870,36.2202,114.14,114.05,41.01013669]
[1644198427271,36.2202,114.14,114.05,41.26013669]
[1644198427472,36.2202,114.14,114.05,47.26013669]
[1644198427871,42.25041873,114.13,114.05,47.26013669]
[1644198435679,42.25041873,114.13,114.05,69.96463669]
[1644198436983,23.0667,114.14,114.05,69.96463669]
[1644198437181,24.3491,114.16,114.06,2.05591788]
[1644198437582,24.3491,114.16,114.07,12.64]
[1644198437782,24.3491,114.16,114.07,12.89]
[1644198437982,39.70348402,114.15,114.08,40.03163066]
[1644198438185,39.70348402,114.15,114.08,46.03163066]
[1644198438383,39.70348402,114.15,114.08,46.28163066]
[1644198438982,39.70348402,114.15,114.08,59.42873066]
[1644198441387,24.3491,114.16,114.08,59.42873066]
[1644198441585,24.9501,114.17,114.09,2.05591788]
[1644198441784,42.80853141,114.22,114.11,13.1442]
[1644198441986,22.9919,114.21,114.12,23.5118]
[1644198442188,22.9919,114.21,114.12,29.5118]
[1644198442386,38.1627874,114.2,114.13,36.7512434]
[1644198442786,38.1627874,114.2,114.13,37.0012434]
[1644198443989,22.9919,114.21,114.13,37.0012434]
[1644198444190,22.9919,114.21,114.13,43.0012434]
[1644198444489,112.5,114.23,114.13,43.0012434]
[1644198444691,135.7954,114.23,114.13,43.0012434]
[1644198445093,47.27296339,114.22,114.13,43.0012434]
[1644198445494,47.27296339,114.22,114.13,37.0012434]
[1644198445694,47.27296339,114.22,114.13,43.0012434]
[1644198445996,47.27296339,114.22,114.13,37.0012434]
[1644198446397,47.27296339,114.22,114.13,43.0012434]
[1644198446599,47.27296339,114.22,114.13,37.0012434]
[1644198446800,47.27296339,114.22,114.13,0.25]
[1644198446998,161.95980256,114.22,114.1,22.7244]
[1644198447198,27.471,114.21,114.1,22.7244]
[1644198447415,12.64,114.2,114.1,22.7244]
[1644198447714,4.38,114.19,114.1,22.7244]
[1644198447915,42.37329866,114.18,114.11,47.20495232]
[1644198448115,44.56013783,114.18,114.11,47.20495232]
[1644198448715,44.56013783,114.18,114.11,47.45495232]
[1644198449518,42.37329866,114.18,114.11,47.45495232]
[1644198449815,23.093,114.21,114.11,53.45495232]
[1644198450016,23.093,114.21,114.12,24.0969]
[1644198450217,23.093,114.21,114.12,30.3469]
[1644198450417,24.33891515,114.21,114.12,30.3469]
[1644198450619,23.093,114.21,114.13,39.83828329]
[1644198450818,23.093,114.21,114.13,46.08828329]
[1644198451019,23.093,114.21,114.13,48.14420117]
[1644198451218,41.12683385,114.22,114.13,48.14420117]
[1644198451421,41.12683385,114.22,114.13,46.08828329]
[1644198451618,41.12683385,114.22,114.13,48.14420117]
[1644198451819,41.12683385,114.22,114.14,24.014]
[1644198452017,41.12683385,114.22,114.15,43.31458062]
[1644198452217,1.24591515,114.23,114.15,43.56458062]
[1644198453218,42.74420818,114.23,114.15,43.56458062]
[1644198456021,1.24591515,114.22,114.15,43.31458062]
[1644198456222,1.24591515,114.22,114.14,24.014]
[1644198456621,1.24591515,114.21,114.14,24.014]
[1644198456821,1.24591515,114.22,114.14,24.014]
[1644198457220,47.01108958,114.21,114.15,37.32080686]
[1644198458724,47.01108958,114.21,114.15,37.57080686]
[1644198459523,1.24591515,114.22,114.15,37.57080686]
[1644198459924,13.88591515,114.23,114.15,43.57080686]
[1644198460123,1.24591515,114.23,114.15,43.57080686]
[1644198460726,48.92581515,114.24,114.15,43.57080686]
[1644198461025,1.24591515,114.25,114.17,13.1364]
[1644198461229,1.24591515,114.25,114.17,19.3864]
[1644198461626,1.24591515,114.25,114.18,2.05072928]
[1644198461825,1.24591515,114.26,114.19,41.83715364]
[1644198462025,1.24591515,114.27,114.2,23.3478]
[1644198462324,37.27203716,114.26,114.2,23.5978]
[1644198462526,37.27203716,114.26,114.2,29.5978]
[1644198462726,37.52203716,114.26,114.2,6.0]
[1644198462927,38.76795231,114.26,114.2,6.0]
[1644198463126,38.76795231,114.26,114.17,24.5952]
[1644198463327,38.76795231,114.26,114.18,42.24522088]
[1644198463529,38.76795231,114.26,114.17,30.8452]
[1644198463829,38.76795231,114.26,114.13,6.42714814]
[1644198463830,1.24591515,114.24,114.13,4.377]
[1644198464028,1.24591515,114.24,114.13,24.5952]
[1644198464227,1.24591515,114.24,114.13,30.8452]
[1644198464428,48.21481338,114.23,114.14,48.31806439]
[1644198464631,48.21481338,114.23,114.14,54.31806439]
[1644198464829,48.21481338,114.23,114.14,54.56806439]
[1644198465028,48.21481338,114.23,114.14,67.70786439]
[1644198465229,48.21481338,114.23,114.15,24.6262]
[1644198465429,48.21481338,114.23,114.16,46.56737202]
[1644198465628,49.46072853,114.23,114.16,46.56737202]
[1644198465829,48.21481338,114.23,114.16,46.81737202]
[1644198466029,49.46072853,114.23,114.15,24.6262]
[1644198466228,49.46072853,114.23,114.15,0.25]
[1644198466432,49.71072853,114.23,114.15,0.25]
[1644198467031,49.71072853,114.23,114.15,35.29115424]
[1644198467631,49.71072853,114.23,114.15,0.25]
[1644198467830,48.46481338,114.23,114.13,23.224]
[1644198468031,62.85382853,114.23,114.13,29.224]
[1644198468232,62.85382853,114.23,114.13,23.224]
[1644198468430,23.1434,114.22,114.13,23.224]
[1644198468632,43.80347127,114.21,114.13,65.35485153]
[1644198469032,43.80347127,114.21,114.13,22.974]
[1644198469432,45.04938642,114.21,114.13,22.974]
[1644198470031,45.04938642,114.21,114.13,63.01302623]
[1644198470637,43.80347127,114.21,114.13,63.01302623]
[1644198471233,43.80347127,114.21,114.13,63.26302623]
[1644198471436,43.80347127,114.21,114.13,69.26302623]
[1644198471834,45.04938642,114.21,114.13,69.26302623]
[1644198472037,45.04938642,114.21,114.13,63.26302623]
[1644198472234,45.29938642,114.21,114.13,63.26302623]
[1644198472838,44.05347127,114.21,114.13,63.26302623]
[1644198473038,45.29938642,114.21,114.13,63.26302623]
[1644198473939,44.05347127,114.21,114.13,63.26302623]
[1644198474741,0.25,114.21,114.13,69.26302623]
[1644198474940,0.25,114.21,114.13,71.3066935]
[1644198475140,38.11449543,114.25,114.13,83.9466935]
[1644198475141,1.24591515,114.23,114.13,83.9466935]
[1644198475340,48.69641515,114.25,114.14,4.378]
[1644198475740,25.72031515,114.25,114.15,42.44186486]
[1644198475940,25.72031515,114.25,114.16,27.2558]
[1644198476140,25.72031515,114.25,114.17,41.90937219]
[1644198476340,1.24591515,114.25,114.17,42.15937219]
[1644198476642,42.02416719,114.26,114.17,48.15937219]
[1644198476840,42.02416719,114.26,114.18,22.8778]
[1644198477041,42.02416719,114.26,114.19,40.71085109]
[1644198477346,1.24591515,114.25,114.19,40.96085109]
[1644198477746,1.24591515,114.25,114.19,54.09555109]
[1644198477948,1.24591515,114.26,114.19,60.09555109]
[1644198478147,1.24591515,114.26,114.19,54.09555109]
[1644198478346,1.24591515,114.26,114.2,22.676]
[1644198478547,1.24591515,114.26,114.21,45.5210789]
[1644198479151,36.17703654,114.25,114.2,22.676]
[1644198479348,36.17703654,114.25,114.17,43.627]
[1644198479548,37.42295169,114.25,114.17,43.627]
[1644198480150,1.24591515,114.25,114.18,35.8969506]
[1644198480552,1.24591515,114.26,114.18,55.0331506]
[1644198480951,1.24591515,114.26,114.19,24.9739]
[1644198481169,37.33085636,114.26,114.2,35.97174625]
[1644198481371,1.24591515,114.26,114.2,35.97174625]
[1644198482371,46.70770356,114.26,114.2,35.97174625]
[1644198482770,46.95770356,114.26,114.2,35.97174625]
[1644198483371,46.95770356,114.26,114.2,36.22174625]
[1644198483573,1.49591515,114.26,114.2,36.22174625]
[1644198483771,1.49591515,114.26,114.2,35.97174625]
[1644198484275,1.24591515,114.26,114.2,36.22174625]
[1644198484471,1.24591515,114.27,114.2,36.22174625]
[1644198485071,1.24591515,114.27,114.2,42.22174625]
[1644198485271,1.24591515,114.27,114.2,36.22174625]
[1644198485474,1.24591515,114.27,114.2,42.22174625]
[1644198485872,37.35652125,114.26,114.2,42.22174625]
[1644198486273,37.35652125,114.26,114.2,36.22174625]
[1644198486875,37.35652125,114.26,114.2,42.22174625]
[1644198487275,38.6024364,114.26,114.2,36.22174625]
[1644198487477,38.6024364,114.26,114.2,42.22174625]
[1644198487677,38.6024364,114.26,114.2,36.22174625]
[1644198487876,37.35652125,114.26,114.2,36.22174625]
[1644198488076,37.60652125,114.26,114.2,36.22174625]
[1644198488280,38.8524364,114.26,114.2,36.22174625]
[1644198488477,37.60652125,114.26,114.2,36.22174625]
[1644198489177,37.60652125,114.26,114.19,38.1089]
[1644198489178,38.8524364,114.26,114.19,24.9739]
[1644198489380,38.8524364,114.26,114.19,25.2239]
[1644198489779,38.8524364,114.26,114.19,24.9739]
[1644198490379,38.8524364,114.26,114.18,43.30341392]
[1644198490578,47.85774844,114.24,114.18,43.30341392]
[1644198490979,47.85774844,114.24,114.18,62.43981392]
[1644198491179,1.49591515,114.26,114.18,62.43981392]
[1644198491381,1.49591515,114.26,114.19,23.2097]
[1644198491781,1.49591515,114.26,114.19,23.4597]
[1644198492182,44.19769181,114.26,114.2,41.40273915]
[1644198492582,44.19769181,114.26,114.2,41.65273915]
[1644198493082,1.24591515,114.27,114.2,47.65273915]
[1644198493282,25.71281515,114.28,114.2,47.65273915]
[1644198493782,24.4669,114.28,114.2,47.65273915]
[1644198493982,35.44771748,114.27,114.2,47.65273915]
[1644198494586,24.4669,114.28,114.2,47.65273915]
[1644198494782,1.24591515,114.29,114.2,47.65273915]
[1644198494983,1.24591515,114.3,114.21,24.8885]
[1644198495184,1.24591515,114.3,114.21,30.8885]
[1644198495383,1.24591515,114.3,114.21,31.1385]
[1644198495585,41.70687553,114.29,114.22,44.88666823]
[1644198495784,41.70687553,114.29,114.22,45.13666823]
[1644198495983,41.70687553,114.29,114.22,58.26836823]
[1644198496183,41.95687553,114.29,114.22,58.26836823]
[1644198496386,1.24591515,114.3,114.22,58.26836823]
[1644198496591,1.24591515,114.31,114.23,23.8159]
[1644198496786,1.24591515,114.31,114.23,36.7059]
[1644198496983,1.2451139,114.35,114.24,40.0]
[1644198497189,31.53080885,114.37,114.25,46.08]
[1644198497393,31.53080885,114.37,114.26,6.43549]
[1644198497394,32.77575192,114.37,114.26,6.43549]
[1644198497587,0.18361152,114.37,114.27,12.64]
[1644198497790,0.18361152,114.37,114.27,12.89]
[1644198497986,0.18361152,114.37,114.27,69.05972]
[1644198498188,0.92855459,114.41,114.28,37.4462]
[1644198498387,0.36722304,114.41,114.3,38.28438118]
[1644198498587,0.36722304,114.41,114.31,12.64]
[1644198498890,0.36722304,114.41,114.31,22.482]
[1644198499087,0.36722304,114.41,114.31,28.482]
[1644198499289,0.36722304,114.41,114.32,13.1186]
[1644198499487,0.36722304,114.41,114.33,12.64]
[1644198499690,42.38910826,114.41,114.34,34.32231296]
[1644198500087,42.38910826,114.41,114.34,40.32231296]
[1644198500787,42.63910826,114.41,114.34,40.32231296]
[1644198501390,55.76140826,114.41,114.34,6.0]
[1644198501590,55.76140826,114.41,114.32,29.7015]
[1644198501790,42.63910826,114.41,114.32,29.7015]
[1644198501990,42.63910826,114.41,114.32,29.9515]
[1644198502393,42.63910826,114.41,114.32,41.16097204]
[1644198502592,42.63910826,114.41,114.32,6.0]
[1644198502793,17.4952,114.4,114.32,6.0]
[1644198502992,17.4952,114.4,114.3,29.4571]
[1644198503193,13.1242,114.4,114.3,23.4571]
[1644198503594,41.82488198,114.39,114.29,60.03708126]
[1644198503793,41.82488198,114.39,114.29,66.03708126]
[1644198503994,42.19210502,114.39,114.29,60.03708126]
[1644198504494,54.83210502,114.39,114.29,60.03708126]
[1644198504696,13.1249,114.38,114.29,24.3935]
[1644198504899,13.49212304,114.38,114.29,24.3935]
[1644198505094,13.49212304,114.38,114.26,26.65639374]
[1644198505295,12.64,114.37,114.26,26.65639374]
[1644198505696,47.02378832,114.36,114.27,41.87352028]
[1644198505995,47.39101136,114.36,114.27,41.87352028]